fUST/lending_fUST_20250805
["ID","MTS","AMOUNT","RATE_DAILY","PERIOD"]
[377336497,1754356241290,-544.05,0.00031395,2]
[377336498,1754356241301,-460.0,0.00031395,2]
[377336499,1754356241311,-200.0,0.00031591,120]
[377336500,1754356241321,-544.05,0.00031669,2]
[377336501,1754356241332,-183.26,0.00031669,2]
[377336502,1754356241343,-200.0,0.00031884,120]
[377336503,1754356241354,-544.05,0.00031943,2]
[377336504,1754356241364,-544.05,0.00032217,2]
[377336505,1754356241374,-151.0,0.00032221,2]
[377336506,1754356241385,-151.0,0.00032221,2]
[377336507,1754356241395,-151.0,0.00032221,2]
[377336508,1754356241404,-151.0,0.00032221,2]
[377336509,1754356241414,-151.0,0.00032221,2]
[377336510,1754356241424,-151.0,0.00032221,2]
[377336511,1754356241434,-151.0,0.00032221,2]
[377336512,1754356241446,-151.0,0.00032221,2]
[377336513,1754356241456,-151.0,0.00032221,2]
[377336514,1754356241466,-151.0,0.00032221,2]
[377336515,1754356241477,-151.0,0.00032221,2]
[377336516,1754356241487,-151.0,0.00032221,2]
[377336517,1754356241499,-151.0,0.00032221,2]
[377336518,1754356241510,-151.0,0.00032221,2]
[377336519,1754356241521,-151.0,0.00032221,2]
[377336520,1754356241532,-151.0,0.00032221,2]
[377336521,1754356241543,-151.0,0.00032221,2]
[377336522,1754356241554,-151.0,0.00032221,2]
[377336523,1754356241564,-151.0,0.00032221,2]
[377336524,1754356241576,-151.0,0.00032221,2]
[377336525,1754356241587,-200.0,0.00032397,120]
[377336526,1754356241600,-544.05,0.00032491,2]
[377336527,1754356241614,-544.05,0.00032765,2]
[377336530,1754356241626,-408.0,0.00032849,2]
[377336532,1754356241638,-408.496,0.00032849,2]
[377336534,1754356241649,-12408.76,0.00032876,120]
[377336536,1754356241661,-500.0,0.00032877,5]
[377336538,1754356241674,-170.15455397,0.0003288,2]
[377336541,1754356241684,-808.59,0.000329,7]
[377336543,1754356241694,-200.0,0.00033025,15]
[377336545,1754356241705,-200.0,0.00033025,15]
[377336547,1754356241715,-200.0,0.00033025,15]
[377336549,1754356241724,-240.0,0.00033025,15]
[377336551,1754356241734,-544.05,0.00033039,2]
[377336553,1754356241744,-635.0,0.00033252,2]
[377336555,1754356241754,-970.0,0.00033252,2]
[377336557,1754356241765,-2148.0,0.00033252,2]
[377336559,1754356241775,-544.05,0.00033313,2]
[377336561,1754356241787,-544.05,0.00033587,2]
[377336563,1754356241798,-12408.76,0.00033698,120]
[377336565,1754356241809,-200.0,0.000338,120]
[377336568,1754356241820,-544.05,0.00033861,2]
[377336570,1754356241832,-200.0,0.0003407,120]
[377336572,1754356241843,-544.05,0.00034135,2]
[377336574,1754356241855,-287.73617717,0.00034181,2]
[377336576,1754356241865,-6592.96045568,0.0003428,2]
[377336578,1754356241875,-354.7073044,0.0003428,2]
[377336580,1754356241885,-842.05743881,0.0003429,120]
[377336582,1754356241896,-4736.70686879,0.0003429,2]
[377336584,1754356241906,-544.05,0.00034409,2]
[377336587,1754356241917,-644.0,0.000345,2]
[377336589,1754356241926,-12408.76,0.0003452,120]
[377336591,1754356241936,-887.81753548,0.00034706,2]
[377336593,1754356241948,-255.3,0.00035102,10]
[377336595,1754356241959,-212.75,0.00035102,10]
[377336597,1754356241970,-177.3,0.00035102,10]
[377336599,1754356241980,-12408.76,0.00035342,120]
[377336601,1754356241991,-166.040931,0.00035455,2]
[377336604,1754356242002,-400.614,0.00035849,2]
[377336606,1754356242012,-408.0,0.00035849,2]
[377336608,1754356242022,-2200.0,0.00035868,7]
[377336610,1754356242032,-12408.76,0.00036164,120]
[377336612,1754356242043,-200.0,0.00036192,15]
[377336614,1754356242052,-200.0,0.00036192,15]
[377336616,1754356242062,-200.0,0.00036192,15]
[377336618,1754356242073,-200.0,0.00036192,15]
[377336620,1754356242083,-375.0,0.00036192,15]
[377336622,1754356242093,-635.0,0.00036252,2]
[377336624,1754356242105,-970.0,0.00036252,2]
[377336626,1754356242117,-2148.0,0.00036252,2]
[377336628,1754356242127,-1400.0,0.00036712,7]
[377336630,1754356242137,-6592.96045568,0.00036736,3]
[377336632,1754356242146,-354.7073044,0.00036736,3]
[377336634,1754356242158,-1108.00055823,0.00036746,2]
[377336636,1754356242168,-1000.0,0.00036746,2]
[377336638,1754356242179,-1000.0,0.00036746,2]
[377336640,1754356242191,-1000.0,0.00036746,2]
[377336642,1754356242202,-1000.0,0.00036746,2]
[377336645,1754356242213,-1000.0,0.00036746,2]
[377336647,1754356242223,-1000.0,0.00036746,2]
[377336649,1754356242233,-222.7993086,0.00036746,2]
[377336651,1754356242243,-842.05743881,0.0003688,3]
[377336653,1754356242254,-216.36857094,0.0003688,3]
[377336655,1754356242264,-12652.17918183,0.0003688,3]
[377336657,1754356242275,-6592.96045568,0.0003688,3]
[377336659,1754356242286,-354.7073044,0.0003688,3]
[377336661,1754356242297,-151.0,0.00036889,3]
[377336664,1754356242307,-300.0,0.00036889,3]
[377336666,1754356242317,-151.0,0.00036889,3]
[377336668,1754356242327,-19778.881367,0.0003689,3]
[377336670,1754356242338,-1064.1219132,0.0003689,3]
[377336672,1754356242348,-133528.6520281,0.000369,120]
[377336674,1754356242358,-5781.06,0.000369,14]
[377336676,1754356242368,-12408.76,0.00036986,120]
[377336678,1754356242379,-2283.05,0.00037,7]
[377336680,1754356242389,-552.69661052,0.00037148,2]
[377336683,1754356242400,-500.0,0.00037228,2]
[377336685,1754356242410,-808.59,0.000374,7]
[377336687,1754356242420,-1400.0,0.00037534,7]
[377336689,1754356242430,-842.05743881,0.00037534,7]
[377336691,1754356242440,-12652.17918183,0.00037534,7]
[377336693,1754356242454,-200.0,0.00037722,120]
[377336711,1754356242601,-200.0,0.00037782,120]
[377336713,1754356242620,-12408.76,0.00037808,120]
[377336714,1754356242630,-566.78334563,0.00038,2]
[377336715,1754356242639,-700.0,0.00038055,7]
[377336716,1754356242649,-500.0,0.00038208,7]
[377336717,1754356242658,-500.0,0.00038233,7]
[377336718,1754356242667,-152.12,0.00038246,2]
[377336719,1754356242677,-200.0,0.00038291,120]
[377336720,1754356242687,-500.0,0.00038344,7]
[377336721,1754356242696,-1400.0,0.00038356,7]
[377336722,1754356242707,-6592.96045568,0.00038389,3]
[377336723,1754356242717,-354.7073044,0.00038389,3]
[377336724,1754356242727,-887.81753548,0.00038411,2]
[377336725,1754356242737,-700.0,0.00038444,7]
[377336726,1754356242748,-200.0,0.0003846,120]
[377336727,1754356242758,-150.0,0.00038562,3]
[377336728,1754356242767,-700.0,0.0003861,7]
[377336729,1754356242776,-500.0,0.00038621,7]
[377336730,1754356242786,-500.0,0.00038624,2]
[377336731,1754356242796,-12408.76,0.0003863,120]
[377336732,1754356242806,-500.0,0.00038653,7]
[377336733,1754356242815,-151.0,0.000387,14]
[377336734,1754356242824,-500.0,0.00038733,7]
[377336735,1754356242834,-700.0,0.00038818,7]
[377336736,1754356242843,-408.0,0.00038849,2]
[377336737,1754356242852,-500.0,0.00038901,7]
[377336738,1754356242863,-700.0,0.0003905,7]
[377336739,1754356242872,-1400.0,0.00039178,7]
[377336740,1754356242882,-635.0,0.00039252,2]
[377336741,1754356242891,-970.0,0.00039252,2]
[377336742,1754356242901,-2148.0,0.00039252,2]
[377336743,1754356242910,-151.0,0.000393,11]
[377336744,1754356242920,-700.0,0.00039322,7]
[377336745,1754356242929,-500.0,0.00039333,2]
[377336746,1754356242939,-500.0,0.00039393,7]
[377336747,1754356242948,-12408.76,0.00039452,120]
[377336748,1754356242958,-500.0,0.00039634,2]
[377336749,1754356242968,-200.0,0.00039654,120]
[377336751,1754356242977,-200.0,0.00039663,30]
[377336752,1754356242988,-200.0,0.00039663,30]
[377336754,1754356242997,-200.0,0.00039663,30]
[377336755,1754356243007,-200.0,0.00039663,30]
[377336756,1754356243017,-200.0,0.00039663,30]
[377336757,1754356243026,-200.0,0.00039663,30]
[377336758,1754356243036,-200.0,0.00039663,30]
[377336759,1754356243047,-246.0,0.00039663,30]
[377336760,1754356243057,-6592.96045568,0.0003969,3]
[377336761,1754356243067,-354.7073044,0.0003969,3]
[377336762,1754356243077,-3391.34017377,0.000397,120]
[377336763,1754356243086,-5781.06,0.000397,14]
[377336764,1754356243096,-500.0,0.00039745,7]
[377336765,1754356243107,-500.0,0.00039758,2]
[377336766,1754356243117,-2283.05,0.000399,7]
[377336767,1754356243126,-7620.28563312,0.000399,2]
[377336768,1754356243136,-700.0,0.00039914,7]
[377336769,1754356243145,-700.0,0.00039947,7]
[377336770,1754356243154,-6592.96045568,0.0003997,3]
[377336771,1754356243164,-354.7073044,0.0003997,3]
[377336772,1754356243174,-59336.6441011,0.0003998,3]
[377336773,1754356243183,-3192.3657396,0.0003998,3]
[377336774,1754356243192,-1000.0,0.0003999,120]
[377336775,1754356243202,-1000.0,0.0003999,120]
[377336776,1754356243211,-11973.56112691,0.0003999,5]
[377336777,1754356243228,-3052.19964687,0.0003999,5]
[377336778,1754356243239,-86312.72616301,0.0003999,5]
[377336824,1754356246707,-300.0,0.00036889,3]
[377336825,1754356246717,-2200.0,0.00039758,14]
[377336826,1754356246727,-1108.00055823,0.000399,2]
[377336827,1754356246737,-886.5,0.0003998,10]
[377336828,1754356246747,-5122.74024552,0.0003999,5]
[377336836,1754356365021,2000.0,0.00030253,30]
[377336837,1754356439952,338.50701006,0.00030136,120]
[377336839,1754356710815,200.0,0.00029117,120]
[377336841,1754356785372,160.181828,0.00013699,2]
[377336842,1754356785656,160.181828,0.00020951,2]
[377336854,1754357173626,24900.0,0.00026361,2]
[377336861,1754357276168,157.30502959,0.00024261,2]
[377336868,1754357282563,502.0,0.00030136,120]
[377336876,1754357325138,1009.48252744,0.000225,2]
[377336877,1754357325507,208372.82076255,0.0002465,2]
[377336878,1754357325783,455.08594964,0.00024,2]
[377336879,1754357325813,160.39460019,0.00024,2]
[377336909,1754357414989,255.151265,0.000265,2]
[377336910,1754357430671,370.69697425,0.000265,2]
[377336943,1754357433163,-199.289641,0.00026501,2]
[377336944,1754357433173,-188.8527308,0.00026531,2]
[377336945,1754357433183,-174.001958,0.00026624,2]
[377336946,1754357433192,-174.7354695,0.00026628,2]
[377336947,1754357433202,-1122.34,0.000269,2]
[377336948,1754357433212,-300.0,0.00027396,2]
[377336949,1754357433222,-300.0,0.00027396,2]
[377336950,1754357433232,-913.74351406,0.00027397,2]
[377336951,1754357433241,-460.0,0.00027397,2]
[377336952,1754357433252,-460.0,0.00027397,2]
[377336953,1754357433261,-460.0,0.00027397,2]
[377336954,1754357433271,-460.0,0.00027397,2]
[377336955,1754357433281,-406.99194568,0.00027397,2]
[377336956,1754357436089,150.0,0.00024871,2]
[377336962,1754357439031,-500.0,0.00027396,2]
[377336963,1754357439040,-28.08298489,0.00027396,2]
[377336964,1754357439053,-190.46093675,0.00027396,2]
[377336965,1754357439062,-54.43887356,0.00027397,2]
[377336966,1754357439071,-460.0,0.00027397,2]
[377336967,1754357439082,-182.4788714,0.00027397,2]
[377336968,1754357439194,-277.5211286,0.00027397,2]
[377336969,1754357439206,-460.0,0.00027397,2]
[377336970,1754357439216,-460.0,0.00027397,2]
[377336972,1754357439226,-102.47887212,0.00027397,2]
[377336974,1754357439239,-360.50642057,0.00027397,2]
[377336975,1754357439249,-460.0,0.00027397,2]
[377336976,1754357439259,-460.0,0.00027397,2]
[377336977,1754357439270,-460.0,0.00027397,2]
[377336978,1754357439282,-460.0,0.00027397,2]
[377336979,1754357439293,-460.0,0.00027397,2]
[377336980,1754357439303,-460.0,0.00027397,2]
[377336981,1754357439315,-460.0,0.00027397,2]
[377336982,1754357439325,-500.0,0.00027397,2]
[377336983,1754357439334,-500.0,0.00027397,2]
[377336984,1754357439346,-460.0,0.00027397,2]
[377336985,1754357439355,-468.28156366,0.00027397,2]
[377336986,1754357439365,-460.0,0.00027397,2]
[377336987,1754357439375,-460.0,0.00027397,2]
[377336988,1754357439384,-460.0,0.00027397,2]
[377336989,1754357439395,-460.0,0.00027397,2]
[377336990,1754357439404,-460.0,0.00027397,2]
[377336991,1754357439414,-460.0,0.00027397,2]
[377336992,1754357439424,-460.0,0.00027397,2]
[377336993,1754357439434,-462.59925954,0.00027397,2]
[377336994,1754357439447,-460.0,0.00027397,2]
[377336995,1754357439459,-460.0,0.00027397,2]
[377336996,1754357439469,-461.90289695,0.00027397,2]
[377336997,1754357439479,-522.20871786,0.00027397,2]
[377336998,1754357439490,-4000.0,0.000275,2]
[377336999,1754357439500,-152.46,0.00027524,15]
[377337000,1754357439511,-163.31,0.00027526,15]
[377337001,1754357439522,-163.31,0.00027529,15]
[377337002,1754357439532,-460.0,0.00027671,2]
[377337003,1754357439544,-460.0,0.00027671,2]
[377337004,1754357439554,-2339.80096982,0.000279,18]
[377337005,1754357439564,-837.17468961,0.00028008,2]
[377337006,1754357439575,-499.54,0.00028107,2]
[377337007,1754357439584,-460.0,0.00028107,2]
[377337008,1754357439595,-460.0,0.00028107,2]
[377337009,1754357439604,-460.0,0.00028107,2]
[377337010,1754357439613,-262.05280879,0.00028107,2]
[377337011,1754357439623,-460.0,0.00028107,2]
[377337012,1754357439634,-460.0,0.00028107,2]
[377337013,1754357439644,-460.0,0.00028107,2]
[377337014,1754357439653,-469.81470145,0.00028107,2]
[377337015,1754357439663,-460.0,0.00028107,2]
[377337016,1754357439673,-467.04726424,0.00028107,2]
[377337017,1754357439682,-460.0,0.00028108,2]
[377337018,1754357439694,-474.66182607,0.00028108,2]
[377337019,1754357439704,-460.0,0.00028108,2]
[377337020,1754357439715,-463.75962397,0.00028108,2]
[377337021,1754357439726,-461.03093924,0.00028108,2]
[377337022,1754357439737,-274.6502914,0.00028108,2]
[377337023,1754357439747,-458.44593449,0.00028108,2]
[377337024,1754357439758,-1000.0,0.00028108,2]
[377337025,1754357439768,-460.0,0.00028108,2]
[377337026,1754357439778,-460.0,0.00028108,2]
[377337027,1754357439788,-460.0,0.00028108,2]
[377337028,1754357439798,-460.0,0.00028108,2]
[377337029,1754357439809,-460.0,0.00028108,2]
[377337030,1754357439818,-460.0,0.00028108,2]
[377337031,1754357439828,-460.0,0.00028108,2]
[377337032,1754357439838,-460.0,0.00028108,2]
[377337033,1754357439848,-469.28146808,0.00028108,2]
[377337034,1754357439858,-460.0,0.00028108,2]
[377337035,1754357439868,-460.0,0.00028108,2]
[377337036,1754357439877,-156.55211229,0.00028108,2]
[377337055,1754357441027,-303.44788771,0.00028108,2]
[377337056,1754357441039,-460.0,0.00028108,2]
[377337057,1754357441048,-460.0,0.00028108,2]
[377337058,1754357441058,-460.58096382,0.00028108,2]
[377337059,1754357441071,-460.0,0.00028108,2]
[377337060,1754357441083,-460.0,0.00028108,2]
[377337061,1754357441093,-460.69223365,0.00028108,2]
[377337062,1754357441102,-460.0,0.00028108,2]
[377337063,1754357441112,-460.0,0.00028108,2]
[377337064,1754357441121,-160.181828,0.00028203,2]
[377337065,1754357441131,-469.59984286,0.00028381,2]
[377337066,1754357441140,-157.542852,0.00028596,20]
[377337067,1754357441149,-622.75820574,0.00028757,5]
[377337068,1754357441159,-157.30502959,0.00029261,2]
[377337069,1754357441168,-198.0,0.00029606,2]
[377337070,1754357441178,-37.80901339,0.0002974,5]
[377337071,1754357441192,-462.19098661,0.0002974,5]
[377337073,1754357441202,-500.0,0.0002974,5]
[377337074,1754357441212,-461.05335821,0.00030011,2]
[377337075,1754357441222,-231.67098287,0.00030018,2]
[377337076,1754357441232,-160.0,0.00030018,2]
[377337077,1754357441242,-160.0,0.00030018,2]
[377337078,1754357441251,-160.0,0.00030018,2]
[377337079,1754357441261,-160.0,0.00030018,2]
[377337081,1754357441271,-160.0,0.00030018,2]
[377337083,1754357441280,-163.97764076,0.00030018,2]
[377337084,1754357442671,184.87,0.00026,7]
[377337088,1754357443489,184.87,0.00028147,30]
[377337099,1754357443909,184.87,0.00029281,30]
[377337137,1754357444156,-184.87,0.00027,7]
[377337140,1754357444167,-678.07979805,0.00030018,2]
[377337142,1754357444176,-216.36857094,0.00030018,2]
[377337144,1754357444187,-65.83884273,0.00030018,2]
[377337148,1754357444200,-94.16115727,0.00030018,2]
[377337151,1754357444210,-12652.17918183,0.00030018,2]
[377337154,1754357444219,-160.0,0.00030022,2]
[377337157,1754357444228,-200.0,0.00030136,15]
[377337159,1754357444238,-200.0,0.00030136,15]
[377337161,1754357444247,-200.0,0.00030136,15]
[377337163,1754357444258,-160.0,0.00030183,2]
[377337165,1754357444267,-500.0,0.00030288,5]
[377337167,1754357444277,-1000.0,0.00030288,5]
[377337169,1754357444287,-622.32,0.000303,2]
[377337171,1754357444298,-169.79394408,0.00030731,2]
[377337173,1754357444308,-837.17468956,0.0003177,2]
[377337175,1754357444318,-151.0,0.00032221,2]
[377337177,1754357444328,-151.0,0.00032221,2]
[377337179,1754357444338,-151.0,0.00032221,2]
[377337181,1754357444348,-151.0,0.00032221,2]
[377337183,1754357444357,-151.0,0.00032221,2]
[377337185,1754357444367,-151.0,0.00032221,2]
[377337187,1754357444378,-151.0,0.00032221,2]
[377337189,1754357444389,-151.0,0.00032221,2]
[377337191,1754357444398,-151.0,0.00032221,2]
[377337193,1754357444408,-151.0,0.00032221,2]
[377337195,1754357444418,-151.0,0.00032221,2]
[377337197,1754357444427,-151.0,0.00032221,2]
[377337199,1754357444438,-151.0,0.00032221,2]
[377337201,1754357444448,-151.0,0.00032221,2]
[377337203,1754357444457,-151.0,0.00032221,2]
[377337205,1754357444467,-151.0,0.00032221,2]
[377337207,1754357444476,-151.0,0.00032221,2]
[377337209,1754357444486,-151.0,0.00032221,2]
[377337211,1754357444495,-151.0,0.00032221,2]
[377337213,1754357444505,-151.0,0.00032221,2]
[377337215,1754357444515,-151.0,0.00032221,2]
[377337217,1754357444525,-151.0,0.00032221,2]
[377337219,1754357444535,-151.0,0.00032221,2]
[377337221,1754357444545,-151.0,0.00032221,2]
[377337223,1754357444555,-151.0,0.00032221,2]
[377337225,1754357444565,-153.56,0.0003239,2]
[377337227,1754357444574,-279.45560644,0.00032432,2]
[377337229,1754357444584,-500.5727922,0.000327,5]
[377337231,1754357444594,-501.0,0.00033,120]
[377337233,1754357444604,-200.0,0.00033025,15]
[377337235,1754357444614,-200.0,0.00033025,15]
[377337237,1754357444624,-200.0,0.00033025,15]
[377337239,1754357444633,-240.0,0.00033025,15]
[377337241,1754357444643,-970.0,0.00034216,2]
[377337243,1754357444653,-635.0,0.00034216,2]
[377337245,1754357444663,-2148.0,0.00034216,2]
[377337247,1754357444672,-408.0,0.00034216,2]
[377337249,1754357444682,-670.31739742,0.00034681,2]
[377337251,1754357444691,-285.36747064,0.00035399,7]
[377337253,1754357444700,-747.95,0.000354,7]
[377337255,1754357444710,-5799.71,0.000354,14]
[377337257,1754357444724,-160.181828,0.00035455,2]
[377337259,1754357444733,-837.17468956,0.00035531,2]
[377337261,1754357444742,-527.23761927,0.00036163,120]
[377337263,1754357444751,-312.16666667,0.00036163,120]
[377337265,1754357444762,-9986.79,0.00036163,120]
[377337267,1754357444771,-200.0,0.00036192,15]
[377337269,1754357444781,-200.0,0.00036192,15]
[377337271,1754357444792,-200.0,0.00036192,15]
[377337273,1754357444802,-200.0,0.00036192,15]
[377337275,1754357444812,-375.0,0.00036192,15]
[377337277,1754357444821,-2200.0,0.00036507,7]
[377337279,1754357444831,-873.0,0.000366,2]
[377337281,1754357444840,-1300.0,0.00036712,7]
[377337283,1754357444850,-9986.79,0.00036985,120]
[377337285,1754357444860,-970.0,0.00037216,2]
[377337287,1754357444870,-635.0,0.00037216,2]
[377337289,1754357444880,-2148.0,0.00037216,2]
[377337290,1754357444889,-408.0,0.00037216,2]
[377337293,1754357444899,-1300.0,0.00037534,7]
[377337295,1754357444909,-520.49102013,0.00037797,3]
[377337296,1754357444918,-12652.17918183,0.00037797,3]
[377337299,1754357444928,-9986.79,0.00037807,120]
[377337301,1754357444938,-162.0,0.00038,90]
[377337303,1754357444948,-566.78334563,0.00038,2]
[377337305,1754357444957,-300.71929134,0.00038,120]
[377337307,1754357444967,-800.0,0.00038137,7]
[377337309,1754357444976,-800.0,0.00038178,7]
[377337311,1754357444986,-800.0,0.00038245,7]
[377337313,1754357444995,-207.86306544,0.00038304,120]
[377337315,1754357445004,-1300.0,0.00038356,7]
[377337317,1754357445013,-800.0,0.00038591,7]
[377337318,1754357445023,-500.0,0.00038616,7]
[377337320,1754357445032,-9986.79,0.00038629,120]
[377337322,1754357445042,-500.0,0.0003873,7]
[377337324,1754357445051,-800.0,0.00038733,7]
[377337325,1754357445061,-800.0,0.00038749,7]
[377337327,1754357445070,-509.49112812,0.00038892,7]
[377337329,1754357445080,-5799.71,0.000389,14]
[377337331,1754357445090,-600.0,0.00038995,7]
[377337333,1754357445099,-162.0,0.00039,120]
[377337335,1754357445109,-747.95,0.00039,7]
[377337337,1754357445118,-201.0,0.0003901,50]
[377337339,1754357445128,-800.0,0.00039044,7]
[377337341,1754357445138,-200.0,0.00039133,120]
[377337343,1754357445147,-1300.0,0.00039178,7]
[377337345,1754357445157,-800.0,0.00039189,7]
[377337347,1754357445166,-837.17468956,0.00039293,2]
[377337349,1754357445176,-2745.80717142,0.00039451,120]
[377337352,1754357445188,-513.72784498,0.00039451,120]
[377337447,1754357476682,275.69,0.0002357,2]
[377337448,1754357500836,150.0,0.00024885,2]
[377337449,1754357569361,1037.8,0.00030263,30]
[377337450,1754357582206,3134.610018,0.00030264,120]
[377337457,1754357798944,7755.94,0.00030137,120]
[377337459,1754357809373,163.065652,0.00013699,2]
[377337460,1754357809592,163.065652,0.00020951,2]
[377337461,1754357924853,10000.0,0.0003,30]
[377337462,1754358019708,636.97428153,0.000265,2]
[377337463,1754358174234,-217.52216865,0.0002663,2]
[377337464,1754358177867,-297.89372316,0.0002663,2]
[377337465,1754358179537,-378.03741498,0.0002663,2]
[377337469,1754358258016,92038.0,0.00030256,30]
[377337511,1754358632189,-182.00597824,0.00026629,2]
[377337513,1754358632200,-225.49773309,0.00026629,2]
[377337515,1754358632210,-206.61753179,0.00026629,2]
[377337517,1754358632219,-300.0,0.00026629,2]
[377337519,1754358632229,-1200.0,0.00026629,2]
[377337521,1754358632239,-24006.54669321,0.0002663,2]
[377337523,1754358632249,-2221.49411708,0.000269,16]
[377337525,1754358632258,-187.9221358,0.0002722,2]
[377337527,1754358632268,-501.78201911,0.0002728,2]
[377337529,1754358632279,-506.52957342,0.0002728,2]
[377337531,1754358632288,-500.0,0.0002728,2]
[377337533,1754358632299,-516.0446056,0.00027313,2]
[377337535,1754358632309,-985.15664376,0.00027313,2]
[377337537,1754358632319,-464.06833727,0.00027397,2]
[377337539,1754358632329,-461.20244705,0.00027397,2]
[377337542,1754358632341,-480.36826866,0.00027397,2]
[377337544,1754358632351,-462.30080868,0.00027397,2]
[377337546,1754358632360,-461.169448,0.00027397,2]
[377337548,1754358632369,-467.33024423,0.00027397,2]
[377337550,1754358632380,-463.82584705,0.00027397,2]
[377337552,1754358632390,-465.97400487,0.00027397,2]
[377337554,1754358632400,-465.55027191,0.00027397,2]
[377337556,1754358632410,-462.19151096,0.00027397,2]
[377337558,1754358632420,-461.56635482,0.00027397,2]
[377337560,1754358632430,-504.26199747,0.00027397,2]
[377337562,1754358632440,-462.258866,0.00027397,2]
[377337564,1754358632451,-464.0381748,0.00027397,2]
[377337566,1754358632460,-464.9665886,0.00027397,2]
[377337568,1754358632470,-463.60790741,0.00027397,2]
[377337570,1754358632480,-463.0354482,0.00027397,2]
[377337572,1754358632490,-463.99760259,0.00027397,2]
[377337574,1754358632500,-461.26805963,0.00027397,2]
[377337576,1754358632510,-467.81242707,0.00027397,2]
[377337578,1754358632520,-455.0,0.00027397,2]
[377337580,1754358632530,-465.69836894,0.00027397,2]
[377337582,1754358632540,-466.88290142,0.00027397,2]
[377337584,1754358632550,-460.0,0.00027397,2]
[377337586,1754358632562,-470.78275307,0.00027397,2]
[377337588,1754358632571,-464.70881294,0.00027397,2]
[377337590,1754358632582,-460.0,0.00027397,2]
[377337592,1754358632592,-469.16633935,0.00027397,2]
[377337594,1754358632602,-460.0,0.00027397,2]
[377337596,1754358632612,-184.63611555,0.00027397,2]
[377337598,1754358632622,-441.24305277,0.00027397,2]
[377337600,1754358632632,-468.60981078,0.00027397,2]
[377337602,1754358632641,-460.0,0.00027397,2]
[377337604,1754358632651,-152.46,0.00027517,15]
[377337606,1754358632660,-229.19641753,0.00027524,15]
[377337608,1754358632670,-60.73120313,0.00027524,15]
[377337610,1754358632685,-97.58879687,0.00027524,15]
[377337612,1754358632695,-158.32074872,0.00027624,15]
[377337614,1754358632707,-465.02259074,0.00027671,2]
[377337616,1754358632717,-460.0,0.00027671,2]
[377337618,1754358632728,-478.59633078,0.00027671,2]
[377337620,1754358632738,-512.36373408,0.00027828,5]
[377337622,1754358632748,-460.0,0.00027945,2]
[377337624,1754358632760,-190.7286267,0.00028013,2]
[377337626,1754358632770,-199.75722945,0.00028106,2]
[377337628,1754358632780,-461.83425801,0.00028107,2]
[377337630,1754358632791,-464.3602562,0.00028107,2]
[377337632,1754358632801,-311.96830895,0.00028107,2]
[377337634,1754358632811,-500.68735888,0.00028107,2]
[377337636,1754358632822,-170.53506616,0.00028107,2]
[377337781,1754358637969,-294.93633201,0.00028107,2]
[377337783,1754358637979,-462.87176394,0.00028107,2]
[377337784,1754358637989,-467.14859624,0.00028107,2]
[377337785,1754358637999,-460.0,0.00028107,2]
[377337786,1754358638010,-476.45746037,0.00028107,2]
[377337787,1754358638021,-471.69436759,0.00028107,2]
[377337788,1754358638030,-167.66820755,0.00028107,18]
[377337789,1754358638040,-464.57537908,0.00028107,2]